fUSD/lending_fUSD_20240601
["ID","MTS","AMOUNT","RATE_DAILY","PERIOD"]
[328372411,1717272633169,-500.0,0.00025432,2]
[328372412,1717272633179,-500.0,0.00025432,2]
[328372413,1717272633188,-500.0,0.00025432,2]
[328372414,1717272633197,-500.0,0.00025432,2]
[328372415,1717272633206,-500.0,0.00025432,2]
[328372416,1717272633215,-500.0,0.00025432,2]
[328372417,1717272633224,-500.0,0.00025432,2]
[328372418,1717272633233,-500.0,0.00025432,2]
[328372419,1717272633242,-500.0,0.00025432,2]
[328372420,1717272633252,-500.0,0.00025432,2]
[328372421,1717272633261,-500.0,0.00025432,2]
[328372422,1717272633413,-500.0,0.00025432,2]
[328372423,1717272633423,-500.0,0.00025432,2]
[328372424,1717272633432,-500.0,0.00025432,2]
[328372425,1717272633442,-500.0,0.00025432,2]
[328372426,1717272633451,-500.0,0.00025432,2]
[328372427,1717272633460,-500.0,0.00025432,2]
[328372428,1717272633469,-500.0,0.00025432,2]
[328372429,1717272633478,-500.0,0.00025432,2]
[328372430,1717272633487,-500.0,0.00025432,2]
[328372431,1717272633496,-500.0,0.00025432,2]
[328372432,1717272633505,-500.0,0.00025432,2]
[328372433,1717272633514,-500.0,0.00025432,2]
[328372434,1717272633523,-500.0,0.00025432,2]
[328372435,1717272633532,-500.0,0.00025432,2]
[328372436,1717272633542,-500.0,0.00025432,2]
[328372437,1717272633551,-500.0,0.00025432,2]
[328372438,1717272633560,-500.0,0.00025432,2]
[328372439,1717272633570,-500.0,0.00025432,2]
[328372440,1717272633578,-500.0,0.00025432,2]
[328372441,1717272633587,-500.0,0.00025432,2]
[328372442,1717272633597,-500.0,0.00025432,2]
[328372443,1717272633606,-500.0,0.00025432,2]
[328372444,1717272633615,-500.0,0.00025432,2]
[328372445,1717272633624,-500.0,0.00025432,2]
[328372446,1717272633633,-500.0,0.00025432,2]
[328372447,1717272633643,-500.0,0.00025432,2]
[328372448,1717272633652,-500.0,0.00025432,2]
[328372449,1717272633661,-500.0,0.00025432,2]
[328372450,1717272633671,-500.0,0.00025432,2]
[328372451,1717272633680,-500.0,0.00025432,2]
[328372452,1717272633689,-500.0,0.00025432,2]
[328372453,1717272633698,-500.0,0.00025432,2]
[328372454,1717272633707,-500.0,0.00025432,2]
[328372455,1717272633717,-500.0,0.00025432,2]
[328372456,1717272633726,-500.0,0.00025432,2]
[328372457,1717272633735,-500.0,0.00025432,2]
[328372458,1717272633744,-500.0,0.00025432,2]
[328372459,1717272633753,-500.0,0.00025432,2]
[328372460,1717272633762,-500.0,0.00025432,2]
[328372461,1717272633771,-500.0,0.00025432,2]
[328372462,1717272633780,-500.0,0.00025432,2]
[328372463,1717272633789,-250.0,0.00025529,2]
[328372464,1717272633799,-155.90342501,0.00025619,2]
[328372465,1717272633808,-524.12444682,0.00025677,2]
[328372466,1717272633817,-268.16542477,0.00025678,2]
[328372467,1717272633826,-201.27489753,0.00025678,2]
[328372468,1717272633835,-493.78,0.00025849,2]
[328372469,1717272633844,-30263.0,0.00025972,2]
[328372470,1717272633853,-238.349,0.0002614,2]
[328372471,1717272633862,-323.369,0.0002614,2]
[328372472,1717272633871,-1329.788,0.0002614,2]
[328372473,1717272633880,-892.0,0.0002614,2]
[328372474,1717272633889,-440.0,0.0002614,2]
[328372475,1717272633898,-1266.0,0.0002614,2]
[328372476,1717272633907,-2401.0,0.0002614,2]
[328372477,1717272633916,-957.408,0.0002614,2]
[328372478,1717272633925,-545.0,0.0002614,2]
[328372479,1717272633935,-151.35293117,0.00026309,2]
[328372480,1717272633944,-4079.43402123,0.00026475,2]
[328372481,1717272633953,-1386.6682,0.00026475,2]
[328372482,1717272633962,-150.0,0.000265,5]
[328372483,1717272633971,-500.0,0.00026574,2]
[328372484,1717272633979,-500.0,0.00026574,2]
[328372485,1717272633989,-200.43294821,0.00026574,2]
[328372486,1717272633997,-500.0,0.00026575,2]
[328372487,1717272634006,-500.0,0.00026575,2]
[328372488,1717272634015,-500.0,0.00026575,2]
[328372489,1717272634024,-500.0,0.00026575,2]
[328372490,1717272634033,-500.0,0.00026575,2]
[328372491,1717272634042,-500.0,0.00026575,2]
[328372492,1717272634051,-500.0,0.00026575,2]
[328372493,1717272634060,-500.0,0.00026575,2]
[328372494,1717272634069,-500.0,0.00026575,2]
[328372495,1717272634078,-500.0,0.00026575,2]
[328372496,1717272634087,-500.0,0.00026575,2]
[328372497,1717272634096,-500.0,0.00026575,2]
[328372498,1717272634105,-500.0,0.00026575,2]
[328372499,1717272634113,-500.0,0.00026575,2]
[328372500,1717272634122,-500.0,0.00026575,2]
[328372501,1717272634131,-500.0,0.00026575,2]
[328372502,1717272634139,-500.0,0.00026575,2]
[328372503,1717272634148,-500.0,0.00026575,2]
[328372504,1717272634157,-500.0,0.00026575,2]
[328372505,1717272634166,-500.0,0.00026575,2]
[328372506,1717272634176,-500.0,0.00026575,2]
[328372507,1717272634185,-317.37975,0.00026575,2]
[328372508,1717272634194,-150.0,0.00026655,2]
[328372509,1717272634203,-150.0,0.0002666,2]
[328372510,1717272634212,-150.0,0.00026664,2]
[328372511,1717272634221,-150.0,0.00026668,2]
[328372512,1717272634231,-150.0,0.00026669,2]
[328372513,1717272634240,-1500.0,0.00026672,2]
[328372514,1717272634248,-150.0,0.00026676,2]
[328372515,1717272634258,-417.30330668,0.00026679,2]
[328372516,1717272634267,-150.0,0.00026679,2]
[328372517,1717272634276,-150.0,0.0002668,2]
[328372518,1717272634286,-150.0,0.00026685,2]
[328372519,1717272634296,-150.0,0.00026691,2]
[328372520,1717272634306,-150.0,0.000267,2]
[328372521,1717272634316,-150.0,0.00026735,2]
[328372522,1717272634325,-150.0,0.00026747,2]
[328372523,1717272634334,-150.0,0.00026754,2]
[328372524,1717272634344,-150.0,0.00026763,2]
[328372525,1717272634354,-150.0,0.00026764,2]
[328372526,1717272634364,-150.0,0.00026771,2]
[328372527,1717272634373,-150.0,0.00026774,2]
[328372528,1717272634382,-150.0,0.00026783,2]
[328372529,1717272634391,-150.0,0.00026783,2]
[328372530,1717272634400,-2500.0,0.00026788,2]
[328372531,1717272634410,-5381.3454,0.00026797,2]
[328372532,1717272634420,-1650.8276,0.00026797,2]
[328372533,1717272634430,-168.06722232,0.00026797,2]
[328372534,1717272634439,-524.39995676,0.00026798,2]
[328372535,1717272634448,-150.0,0.000268,2]
[328372536,1717272634457,-150.0,0.000268,2]
[328372537,1717272634467,-150.0,0.0002681,2]
[328372538,1717272634476,-150.0,0.00026813,2]
[328372539,1717272634485,-150.0,0.00026819,2]
[328372540,1717272634494,-150.0,0.00026821,2]
[328372541,1717272634503,-150.0,0.00026828,2]
[328372542,1717272634513,-150.0,0.00026845,2]
[328372543,1717272634523,-150.0,0.00026855,2]
[328372544,1717272634533,-150.0,0.00026882,2]
[328372545,1717272634542,-586.3856144,0.00026882,2]
[328372546,1717272634552,-5994.8616423,0.00026882,2]
[328372547,1717272634561,-20707.6779206,0.00026882,2]
[328372548,1717272634570,-964.0905548,0.00026882,2]
[328372549,1717272634579,-4243.8994294,0.00026882,2]
[328372550,1717272634588,-150.0,0.00026884,2]
[328372551,1717272634599,-907.0040706,0.00026888,2]
[328372552,1717272634608,-150.0,0.00026892,2]
[328372553,1717272634617,-81782.6539596,0.00026897,7]
[328372554,1717272634626,-446.30746682,0.00026897,2]
[328372555,1717272634635,-1201.84707449,0.00026897,2]
[328372556,1717272634645,-4824.59,0.00026907,2]
[328372557,1717272634654,-4019.70433189,0.00027,2]
[328372558,1717272634663,-1800.0,0.00027,28]
[328372559,1717272634673,-600.0,0.00027,2]
[328372560,1717272634681,-4079.43402115,0.00027222,2]
[328372561,1717272634691,-805.91709047,0.0002739,2]
[328372562,1717272634701,-15866.56,0.00027397,2]
[328372563,1717272634710,-1173.27,0.00027397,2]
[328372564,1717272634719,-150.0,0.00027397,2]
[328372565,1717272634728,-236.54,0.00027397,10]
[328372566,1717272634737,-1198.93,0.000274,2]
[328372567,1717272634747,-170.329369,0.00027469,2]
[328372568,1717272634760,-172.401163,0.00027469,2]
[328372569,1717272634769,-173.321194,0.00027469,2]
[328372570,1717272634778,-3726.608851,0.00027469,2]
[328372571,1717272634787,-5341.314096,0.00027469,2]
[328372572,1717272634797,-514.780688,0.00027469,2]
[328372573,1717272634808,-199.556628,0.00027469,2]
[328372574,1717272634817,-600.0,0.00027553,2]
[328372575,1717272634826,-500.0,0.00027553,2]
[328372576,1717272634837,-340.65591524,0.00027553,2]
[328372577,1717272634849,-500.0,0.00027553,2]
[328372578,1717272634860,-5341.314096,0.00027812,2]
[328372579,1717272634869,-3726.608851,0.00027812,2]
[328372580,1717272634879,-514.780688,0.00027812,2]
[328372581,1717272634888,-424.02,0.00027862,2]
[328372582,1717272634898,-170.329369,0.00027927,2]
[328372583,1717272634908,-4079.43402115,0.00027969,2]
[328372584,1717272634918,-1232.66336223,0.00028,2]
[328372585,1717272634928,-500.0,0.00028101,2]
[328372586,1717272634937,-600.0,0.00028101,2]
[328372587,1717272634946,-493.78,0.00028112,2]
[328372588,1717272634956,-150.0,0.00028118,2]
[328372589,1717272634965,-172.401163,0.00028156,2]
[328372590,1717272634974,-5341.314096,0.00028156,2]
[328372591,1717272634984,-3726.608851,0.00028156,2]
[328372592,1717272634995,-514.780688,0.00028156,2]
[328372593,1717272635004,-300.0,0.000282,2]
[328372594,1717272635014,-175.13,0.00028356,2]
[328372595,1717272635023,-170.329369,0.00028385,2]
[328372596,1717272635032,-5341.314096,0.00028499,2]
[328372597,1717272635041,-3726.608851,0.00028499,2]
[328372598,1717272635051,-514.780688,0.00028499,2]
[328372599,1717272635060,-2336.966324,0.000285,5]
[328372600,1717272635069,-1000.0,0.00028507,2]
[328372601,1717272635078,-300.0,0.00028571,2]
[328372602,1717272635087,-500.0,0.00028649,2]
[328372603,1717272635096,-600.0,0.00028649,2]
[328372604,1717272635105,-500.0,0.00028649,2]
[328372605,1717272635115,-4079.43402115,0.00028717,2]
[328372606,1717272635125,-314.23597978,0.00028739,2]
[328372607,1717272635135,-11641.25915927,0.000288,2]
[328372608,1717272635144,-1198.93,0.00028832,2]
[328372609,1717272635154,-150.0,0.00028839,2]
[328372610,1717272635163,-172.401163,0.00028842,2]
[328372611,1717272635172,-5341.314096,0.00028842,2]
[328372612,1717272635181,-3726.608851,0.00028842,2]
[328372613,1717272635192,-514.780688,0.00028842,2]
[328372614,1717272635202,-173.321194,0.00028842,2]
[328372615,1717272635211,-170.329369,0.00028842,2]
[328372616,1717272635220,-300.0,0.00028942,2]
[328372617,1717272635230,-5000.0,0.00029,2]
[328372618,1717272635239,-1485.85566556,0.00029,2]
[328372619,1717272635248,-11657.37927508,0.00029,2]
[328372620,1717272635262,-650.0,0.00029,2]
[328372621,1717272635272,-43506.69091629,0.00029,2]
[328372622,1717272635281,-2052.95118628,0.00029,2]
[328372623,1717272635294,-1500.0,0.00029,5]
[328372624,1717272635304,-288.0,0.0002914,2]
[328372625,1717272635315,-1263.0,0.0002914,2]
[328372626,1717272635324,-2037.308,0.0002914,2]
[328372627,1717272635334,-545.0,0.0002914,2]
[328372628,1717272635343,-500.0,0.00029197,2]
[328372629,1717272635353,-600.0,0.00029197,2]
[328372630,1717272635364,-500.0,0.00029313,2]
[328372631,1717272635374,-4079.43402115,0.00029464,2]
[328372632,1717272635384,-2119.36269,0.000295,2]
[328372633,1717272635395,-3769.6591,0.000295,2]
[328372634,1717272635405,-1500.0,0.000295,5]
[328372635,1717272635414,-150.0,0.0002956,2]
[328372636,1717272635425,-314.23597978,0.00029631,2]
[328372637,1717272635434,-197.0,0.00029642,5]
[328372638,1717272635443,-600.0,0.00029745,2]
[328372639,1717272635452,-394.58364308,0.00029745,2]
[328372640,1717272635461,-3179.044035,0.000298,2]
[328372641,1717272635470,-5654.48865,0.000298,2]
[328372642,1717272635480,-394.88,0.00029815,2]
[328372643,1717272635489,-1126.67,0.00029815,2]
[328372644,1717272635498,-1957.49,0.00029815,2]
[328372645,1717272635507,-8223.25,0.00029815,2]
[328372646,1717272635517,-2007.84808752,0.000299,2]
[328372647,1717272635527,-21865.5743137,0.0002998,7]
[328372648,1717272635536,-203.72089016,0.0002999,2]
[328372649,1717272635546,-1198.93,0.0002999,2]
[328372650,1717272635555,-4238.72538,0.0003,2]
[328372651,1717272635565,-11912.88941949,0.0003,2]
[328372652,1717272635574,-7539.3182,0.0003,2]
[328372653,1717272635583,-155.0,0.0003,2]
[328372654,1717272635592,-5698.34718129,0.0003,2]
[328372655,1717272635601,-17529.74913899,0.0003,2]
[328372656,1717272635610,-500.0,0.0003,2]
[328372657,1717272635619,-500.0,0.0003,2]
[328372658,1717272635628,-500.0,0.0003,2]
[328372659,1717272635637,-500.0,0.0003,2]
[328372660,1717272635646,-500.0,0.0003,2]
[328372661,1717272635656,-500.0,0.0003,2]
[328372662,1717272635665,-500.0,0.0003,2]
[328372663,1717272635675,-500.0,0.0003,2]
[328372664,1717272635684,-500.0,0.0003,2]
[328372665,1717272635693,-500.0,0.0003,2]
[328372666,1717272635703,-500.0,0.0003,2]
[328372667,1717272635713,-500.0,0.0003,2]
[328372668,1717272635722,-500.0,0.0003,2]
[328372669,1717272635731,-500.0,0.0003,2]
[328372670,1717272635741,-500.0,0.0003,2]
[328372671,1717272635750,-500.0,0.0003,2]
[328372672,1717272635760,-500.0,0.0003,2]
[328372673,1717272635769,-500.0,0.0003,2]
[328372674,1717272635784,-500.0,0.0003,2]
[328372675,1717272635794,-500.0,0.0003,2]
[328372676,1717272635804,-500.0,0.0003,2]
[328372677,1717272635812,-500.0,0.0003,2]
[328372678,1717272635821,-500.0,0.0003,2]
[328372679,1717272635831,-500.0,0.0003,2]
[328372680,1717272635839,-500.0,0.0003,2]
[328372681,1717272635848,-500.0,0.0003,2]
[328372682,1717272635858,-500.0,0.0003,2]
[328372683,1717272635866,-644.54,0.0003,2]
[328372684,1717272635876,-500.0,0.0003,2]
[328372685,1717272635885,-500.0,0.0003,2]
[328372686,1717272635894,-500.0,0.0003,2]
[328372687,1717272635906,-500.0,0.0003,2]
[328372688,1717272635916,-500.0,0.0003,2]
[328372689,1717272635926,-500.0,0.0003,2]
[328372690,1717272635935,-500.0,0.0003,2]
[328372691,1717272635944,-500.0,0.0003,2]
[328372692,1717272635954,-500.0,0.0003,2]
[328372693,1717272635967,-500.0,0.0003,2]
[328372694,1717272635977,-500.0,0.0003,2]
[328372695,1717272635988,-500.0,0.0003,2]
[328372696,1717272635997,-500.0,0.0003,2]
[328372697,1717272636007,-500.0,0.0003,2]
[328372698,1717272636017,-500.0,0.0003,2]
[328372699,1717272636026,-500.0,0.0003,2]
[328372700,1717272636035,-500.0,0.0003,2]
[328372701,1717272636045,-500.0,0.0003,2]
[328372702,1717272636054,-500.0,0.0003,2]
[328372703,1717272636063,-500.0,0.0003,2]
[328372704,1717272636072,-500.0,0.0003,2]
[328372705,1717272636080,-500.0,0.0003,2]
[328372706,1717272636089,-500.0,0.0003,2]
[328372707,1717272636098,-500.0,0.0003,2]
[328372708,1717272636107,-500.0,0.0003,2]
[328372709,1717272636116,-500.0,0.0003,2]
[328372710,1717272636125,-500.0,0.0003,2]
[328372711,1717272636134,-500.0,0.0003,2]
[328372712,1717272636144,-500.0,0.0003,2]
[328372713,1717272636153,-500.0,0.0003,2]
[328372714,1717272636162,-500.0,0.0003,2]
[328372715,1717272636171,-500.0,0.0003,2]
[328372716,1717272636180,-500.0,0.0003,2]
[328372717,1717272636189,-500.0,0.0003,2]
[328372718,1717272636198,-500.0,0.0003,2]
[328372719,1717272636208,-500.0,0.0003,2]
[328372720,1717272636218,-500.0,0.0003,2]
[328372721,1717272636228,-500.0,0.0003,2]
[328372722,1717272636237,-500.0,0.0003,2]
[328372723,1717272636248,-354.0,0.0003,2]
[328372724,1717272636260,-500.0,0.0003,2]
[328372725,1717272636270,-500.0,0.0003,2]
[328372726,1717272636281,-500.0,0.0003,2]
[328372727,1717272636292,-500.0,0.0003,2]
[328372728,1717272636303,-500.0,0.0003,2]
[328372729,1717272636312,-500.0,0.0003,2]
[328372730,1717272636322,-500.0,0.0003,2]
[328372731,1717272636331,-500.0,0.0003,2]
[328372732,1717272636341,-500.0,0.0003,2]
[328372733,1717272636350,-500.0,0.0003,2]
[328372734,1717272636359,-500.0,0.0003,2]
[328372735,1717272636369,-594.69,0.0003,2]
[328372736,1717272636378,-500.0,0.0003,2]
[328372737,1717272636388,-207.0,0.0003,2]
[328372738,1717272636398,-1000.0,0.0003,2]
[328372739,1717272636408,-1500.0,0.0003,5]
[328372740,1717272636417,-224.0,0.0003,2]
[328372741,1717272636427,-945.8,0.0003,2]
[328372742,1717272636436,-984.0,0.000302,5]
[328372743,1717272636446,-5298.406725,0.000302,2]
[328372744,1717272636455,-9424.14775,0.000302,2]
[328372745,1717272636464,-4079.43402115,0.00030211,10]
[328372746,1717272636474,-150.0,0.00030281,2]
[328372747,1717272636483,-500.0,0.00030293,10]
[328372748,1717272636493,-179.51,0.0003031,2]
[328372749,1717272636502,-493.78,0.00030376,2]
[328372750,1717272636511,-7417.769415,0.000305,2]
[328372751,1717272636521,-2719.13195285,0.000305,2]
[328372752,1717272636649,-10474.67489715,0.000305,2]
[328372753,1717272636659,-1500.0,0.000305,5]
[328372754,1717272636668,-314.23597978,0.00030523,2]
[328372755,1717272636802,-424.02,0.00030602,2]
[328372756,1717272636811,-500.0,0.000307,5]
[328372757,1717272636820,-500.0,0.000307,5]
[328372758,1717272636831,-500.0,0.000307,5]
[328372759,1717272636840,-500.0,0.000307,5]
[328372760,1717272636849,-500.0,0.000307,5]
[328372761,1717272636858,-500.0,0.000307,5]
[328372762,1717272636868,-500.0,0.000307,5]
[328372763,1717272636878,-500.0,0.000307,5]
[328372764,1717272636886,-500.0,0.000307,5]
[328372765,1717272636896,-500.0,0.000307,5]
[328372766,1717272636905,-500.0,0.000307,5]
[328372767,1717272636914,-500.0,0.000307,5]
[328372768,1717272636923,-500.0,0.000307,5]
[328372769,1717272636932,-500.0,0.000307,5]
[328372770,1717272636941,-500.0,0.000307,5]
[328372771,1717272636951,-500.0,0.000307,5]
[328372772,1717272636960,-500.0,0.000307,5]
[328372773,1717272636969,-500.0,0.000307,5]
[328372774,1717272636979,-500.0,0.000307,5]
[328372775,1717272636988,-500.0,0.000307,5]
[328372776,1717272636997,-500.0,0.000307,5]
[328372777,1717272637007,-500.0,0.000307,5]
[328372778,1717272637016,-500.0,0.000307,5]
[328372779,1717272637025,-500.0,0.000307,5]
[328372780,1717272637034,-500.0,0.000307,5]
[328372781,1717272637044,-500.0,0.000307,5]
[328372782,1717272637053,-500.0,0.000307,5]
[328372783,1717272637063,-500.0,0.000307,5]
[328372784,1717272637073,-500.0,0.000307,5]
[328372785,1717272637082,-500.0,0.000307,5]
[328372786,1717272637092,-500.0,0.000307,5]
[328372787,1717272637101,-500.0,0.000307,5]
[328372788,1717272637110,-500.0,0.000307,5]
[328372789,1717272637119,-500.0,0.000307,5]
[328372790,1717272637129,-499.0,0.000307,5]
[328372791,1717272637138,-500.0,0.000307,5]
[328372792,1717272637148,-500.0,0.000307,5]
[328372793,1717272637157,-172.0,0.000307,5]
[328372794,1717272637166,-8477.45076,0.000308,2]
[328372795,1717272637176,-15078.6364,0.000308,2]
[328372796,1717272637185,-842.51,0.00030822,2]
[328372797,1717272637194,-704.22,0.00030822,2]
[328372798,1717272637203,-318.25,0.00030822,2]
[328372799,1717272637212,-600.0,0.00030841,10]
[328372800,1717272637221,-177.88849201,0.00030917,7]
[328372801,1717272637230,-160.29752061,0.00030946,7]
[328372802,1717272637239,-4079.43402115,0.00030958,10]
[328372803,1717272637247,-453.35719245,0.00031,7]
[328372804,1717272637256,-700.0,0.00031,2]
[328372805,1717272637266,-2000.0,0.00031,2]
[328372806,1717272637275,-2000.0,0.00031,2]
[328372807,1717272637284,-399.708446,0.00031,3]
[328372808,1717272637294,-1500.0,0.00031,5]
[328372809,1717272637303,-150.0,0.00031002,2]
[328372810,1717272637312,-2000.0,0.0003101,2]
[328372811,1717272637322,-3789.508822,0.0003101,2]
[328372812,1717272637331,-472.74895121,0.0003102,2]
[328372813,1717272637343,-325.40703263,0.0003102,2]
[328372814,1717272637359,-197.11,0.00027397,10]
[328372815,1717272637369,-1201.84401616,0.0003102,2]
[328372816,1717272637379,-3932.632712,0.0003103,2]
[328372817,1717272637388,-155.61412595,0.00031065,7]
[328372818,1717272637397,-160.8866894,0.00031265,7]
[328372819,1717272637406,-155.46799552,0.000313,4]
[328372820,1717272637415,-150.0,0.00031356,2]
[328372821,1717272637424,-500.0,0.00031389,10]
[328372822,1717272637433,-314.23597978,0.00031416,2]
[328372823,1717272637442,-389.33340285,0.00031423,7]
[328372824,1717272637451,-389.33340285,0.0003147,7]
[328372825,1717272637461,-317.37975,0.00031575,2]
[328372826,1717272637470,-164.03435616,0.00031633,7]
[328372827,1717272637479,-1000.0,0.00031675,2]
[328372828,1717272637488,-155.0,0.00031683,7]
[328372829,1717272637497,-389.33340285,0.00031698,7]
[328372830,1717272637506,-4079.43402115,0.00031706,10]
[328372831,1717272637516,-150.0,0.00031723,2]
[328372832,1717272637526,-389.33340285,0.00031781,7]
[328372833,1717272637535,-155.61412595,0.00031831,7]
[328372834,1717272637545,-1134.88,0.000319,2]
[328372835,1717272637554,-779.71,0.000319,2]
[328372836,1717272637563,-3560.52560453,0.00031921,120]
[328372837,1717272637573,-600.0,0.00031937,10]
[328372838,1717272637583,-389.33340285,0.00031959,7]
[328372839,1717272637592,-899.9999997,0.00032,33]
[328372840,1717272637601,-155.61412595,0.00032009,7]
[328372841,1717272637610,-389.33340285,0.00032031,7]
[328372842,1717272637620,-545.0,0.0003214,2]
[328372843,1717272637630,-152.0,0.00032155,3]
[328372844,1717272637639,-389.33340285,0.00032278,7]
[328372845,1717272637648,-500.0,0.000323,2]
[328372846,1717272637658,-500.0,0.000323,2]
[328372847,1717272637667,-500.0,0.000323,2]
[328372848,1717272637678,-500.0,0.000323,2]
[328372849,1717272637687,-500.0,0.000323,2]
[328372850,1717272637696,-500.0,0.000323,2]
[328372851,1717272637706,-500.0,0.000323,2]
[328372852,1717272637715,-500.0,0.000323,2]
[328372853,1717272637725,-500.0,0.000323,2]
[328372854,1717272637733,-500.0,0.000323,2]
[328372855,1717272637743,-500.0,0.000323,2]
[328372856,1717272637752,-500.0,0.000323,2]
[328372857,1717272637761,-500.0,0.000323,2]
[328372858,1717272637770,-500.0,0.000323,2]
[328372859,1717272637779,-500.0,0.000323,2]
[328372860,1717272637788,-500.0,0.000323,2]
[328372861,1717272637798,-500.0,0.000323,2]
[328372862,1717272637807,-500.0,0.000323,2]
[328372863,1717272637816,-500.0,0.000323,2]
[328372864,1717272637825,-500.0,0.000323,2]
[328372865,1717272637835,-500.0,0.000323,2]
[328372866,1717272637844,-500.0,0.000323,2]
[328372867,1717272637853,-500.0,0.000323,2]
[328372868,1717272637862,-500.0,0.000323,2]
[328372869,1717272637871,-500.0,0.000323,2]
[328372870,1717272637881,-500.0,0.000323,2]
[328372871,1717272637890,-500.0,0.000323,2]
[328372872,1717272637899,-500.0,0.000323,2]
[328372873,1717272637909,-500.0,0.000323,2]
[328372874,1717272637918,-500.0,0.000323,2]
[328372875,1717272637928,-500.0,0.000323,2]
[328372876,1717272637937,-500.0,0.000323,2]
[328372877,1717272637946,-500.0,0.000323,2]
[328372878,1717272637955,-500.0,0.000323,2]
[328372879,1717272637964,-500.0,0.000323,2]
[328372881,1717272637973,-500.0,0.000323,2]
[328372882,1717272637981,-500.0,0.000323,2]
[328372884,1717272637991,-500.0,0.000323,2]
[328372885,1717272638000,-500.0,0.000323,2]
[328372886,1717272638010,-500.0,0.000323,2]
[328372887,1717272638019,-500.0,0.000323,2]
[328372888,1717272638028,-500.0,0.000323,2]
[328372889,1717272638038,-500.0,0.000323,2]
[328372890,1717272638047,-500.0,0.000323,2]
[328372891,1717272638056,-500.0,0.000323,2]
[328372892,1717272638066,-500.0,0.000323,2]
[328372893,1717272638075,-500.0,0.000323,2]
[328372894,1717272638084,-500.0,0.000323,2]
[328372895,1717272638093,-500.0,0.000323,2]
[328372896,1717272638102,-500.0,0.000323,2]
[328372897,1717272638112,-500.0,0.000323,2]
[328372898,1717272638121,-500.0,0.000323,2]
[328372899,1717272638130,-500.0,0.000323,2]
[328372900,1717272638139,-500.0,0.000323,2]
[328372901,1717272638149,-500.0,0.000323,2]
[328372902,1717272638158,-500.0,0.000323,2]
[328372903,1717272638167,-500.0,0.000323,2]
[328372904,1717272638178,-500.0,0.000323,2]
[328372905,1717272638187,-500.0,0.000323,2]
[328372906,1717272638199,-500.0,0.000323,2]
[328372907,1717272638209,-500.0,0.000323,2]
[328372908,1717272638218,-500.0,0.000323,2]
[328372909,1717272638228,-500.0,0.000323,2]
[328372910,1717272638238,-500.0,0.000323,2]
[328372911,1717272638247,-500.0,0.000323,2]
[328372912,1717272638256,-500.0,0.000323,2]